[Event "29. Klatovy A 2023"]
[Site "Klatovy"]
[Date "2023.07.07"]
[Round "7.1"]
[White "Slovak, Kilian"]
[Black "Straka, Vojtech"]
[Result "1/2-1/2"]
[ECO "B27"]
[WhiteElo "2297"]
[BlackElo "2433"]
[PlyCount "29"]
[EventDate "2023.07.01"]
[EventType "swiss"]
[EventRounds "9"]
[EventCountry "CZE"]
[TimeControl "120+30"]

1. e4 {[%emt 0:00:05]} c5 {[%emt 0:00:08]} 2. Nf3 {[%emt 0:00:08]} g6 {[%emt 0:00:34]} 3. d4 {[%emt 0:00:08]} cxd4 {[%emt 0:00:07]} 4. Qxd4 {[%emt 0:00:09]} Nf6 {[%emt 0:00:24]} 5. e5 {[%emt 0:00:09]} Nc6 {[%emt 0:00:41]} 6. Qa4 {[%emt 0:00:07]} Nd5 {[%emt 0:00:15]} 7. Qe4 {[%emt 0:00:07]} Nb6 {[%emt 0:09:09]} 8. Nc3 {[%emt 0:01:13]} Bg7 {[%emt 0:00:08]} 9. Bf4 {[%emt 0:01:02]} d5 {[%emt 0:00:27]} 10. exd6 {[%emt 0:00:12]} Bf5 {[%emt 0:00:10]} 11. dxe7 {[%emt 0:00:58]} Bxc3+ {[%emt 0:00:33]} 12. bxc3 {[%emt 0:00:08]} Bxe4 {[%emt 0:00:10]} 13. exd8=Q+ {[%emt 0:00:08]} Rxd8 {[%emt 0:00:13]} 14. Nd4 {[%emt 0:00:49]} O-O {[%emt 0:11:33]} 15. O-O-O {[%emt 0:00:11]} 1/2-1/2

[Event "29. Klatovy A 2023"]
[Site "Klatovy"]
[Date "2023.07.07"]
[Round "7.2"]
[White "Soural, Jan"]
[Black "Horak, Martin"]
[Result "1/2-1/2"]
[ECO "A28"]
[WhiteElo "2176"]
[BlackElo "2266"]
[PlyCount "48"]
[EventDate "2023.07.01"]
[EventType "swiss"]
[EventRounds "9"]
[EventCountry "CZE"]
[TimeControl "120+30"]

1. c4 {[%emt 0:00:20]} e5 {[%emt 0:01:20]} 2. Nc3 {[%emt 0:00:43]} Nf6 {[%emt 0:00:15]} 3. Nf3 {[%emt 0:00:30]} Nc6 {[%emt 0:00:08]} 4. e4 {[%emt 0:00:19]} Bc5 {[%emt 0:00:36]} 5. Nxe5 {[%emt 0:00:26]} Nxe5 {[%emt 0:00:05]} 6. d4 {[%emt 0:00:06]} Bb4 {[%emt 0:00:02]} 7. dxe5 {[%emt 0:00:06]} Nxe4 {[%emt 0:00:03]} 8. Qf3 {[%emt 0:00:27]} Nxc3 {[%emt 0:00:06]} 9. bxc3 {[%emt 0:00:06]} Ba5 {[%emt 0:00:02]} 10. Bf4 {[%emt 0:00:50]} Qe7 {[%emt 0:01:44]} 11. Be2 {[%emt 0:08:19]} O-O {[%emt 0:01:38]} 12. Rd1 {[%emt 0:25:38]} Bb6 {[%emt 0:12:53]} 13. O-O {[%emt 0:03:24]} f6 {[%emt 0:02:42]} 14. Qd5+ {[%emt 0:10:18]} Kh8 {[%emt 0:12:17]} 15. exf6 {[%emt 0:13:25]} Qxf6 {[%emt 0:02:08]} 16. Be5 {[%emt 0:04:08]} Qc6 {[%emt 0:09:47]} 17. c5 {[%emt 0:22:21]} Bxc5 {[%emt 0:03:30]} 18. Bxg7+ {[%emt 0:09:39]} Kxg7 {[%emt 0:00:07]} 19. Qg5+ {[%emt 0:00:05]} Kh8 {[%emt 0:09:40]} 20. Qe5+ {[%emt 0:00:12]} Rf6 {[%emt 0:01:13]} 21. Rd3 {[%emt 0:08:58]} Bf8 {[%emt 0:11:06]} 22. Rf3 {[%emt 0:05:29]} Bg7 {[%emt 0:02:03]} 23. Qe8+ {[%emt 0:00:11]} Bf8 {[%emt 0:00:06]} 24. Qe5 {[%emt 0:00:54]} Bg7 {[%emt 0:00:26]} 1/2-1/2

[Event "29. Klatovy A 2023"]
[Site "Klatovy"]
[Date "2023.07.07"]
[Round "7.3"]
[White "Neuman, Petr"]
[Black "Hurdzan, Tomas"]
[Result "1/2-1/2"]
[ECO "A20"]
[WhiteElo "2398"]
[BlackElo "2309"]
[PlyCount "86"]
[EventDate "2023.07.01"]
[EventType "swiss"]
[EventRounds "9"]
[EventCountry "CZE"]
[TimeControl "120+30"]

1. g3 {[%emt 0:00:05]} e5 {[%emt 0:01:44]} 2. c4 {[%emt 0:00:05]} Nf6 {[%emt 0:01:30]} 3. Bg2 {[%emt 0:00:05]} c6 {[%emt 0:01:06]} 4. Nf3 {[%emt 0:01:49]} e4 {[%emt 0:00:26]} 5. Nd4 {[%emt 0:00:05]} d5 {[%emt 0:00:23]} 6. cxd5 {[%emt 0:00:09]} Qxd5 {[%emt 0:01:33]} 7. Nc2 {[%emt 0:02:29]} Qh5 {[%emt 0:04:23]} 8. Ne3 {[%emt 0:04:32]} Bh3 {[%emt 0:24:33]} 9. Nc3 {[%emt 0:08:37]} Bxg2 {[%emt 0:02:13]} 10. Nxg2 {[%emt 0:01:01]} Bc5 {[%emt 0:09:12]} 11. d3 {[%emt 0:13:22]} exd3 {[%emt 0:06:38]} 12. Qxd3 {[%emt 0:00:30]} O-O {[%emt 0:00:39]} 13. Nf4 {[%emt 0:02:41]} Qe5 {[%emt 0:00:19]} 14. Qf3 {[%emt 0:03:01]} Qf5 {[%emt 0:13:33]} 15. h3 {[%emt 0:08:16]} Nbd7 {[%emt 0:02:23]} 16. g4 {[%emt 0:00:49]} Qc2 {[%emt 0:01:09]} 17. Qd3 {[%emt 0:15:49]} Qxd3 {[%emt 0:00:18]} 18. Nxd3 {[%emt 0:00:03]} Bb6 {[%emt 0:05:34]} 19. Bf4 {[%emt 0:16:50]} Rfe8 {[%emt 0:02:42]} 20. O-O-O {[%emt 0:07:48]} Nf8 {[%emt 0:09:37]} 21. e3 {[%emt 0:01:41]} Ne4 {[%emt 0:07:04]} 22. Nxe4 {[%emt 0:01:03]} Rxe4 {[%emt 0:00:02]} 23. Kc2 {[%emt 0:01:21]} Ree8 {[%emt 0:01:20]} 24. Rd2 {[%emt 0:01:39]} Rad8 {[%emt 0:01:39]} 25. Rhd1 {[%emt 0:00:45]} Ne6 {[%emt 0:00:36]} 26. Bg3 {[%emt 0:00:04]} f6 {[%emt 0:10:21]} 27. h4 {[%emt 0:00:04]} Kf7 {[%emt 0:00:41]} 28. a3 {[%emt 0:01:25]} Rd5 {[%emt 0:00:59]} 29. Nf4 {[%emt 0:04:24]} Nxf4 {[%emt 0:01:15]} 30. Bxf4 {[%emt 0:00:05]} Rxd2+ {[%emt 0:00:56]} 31. Rxd2 {[%emt 0:00:02]} Rd8 {[%emt 0:02:01]} 32. Rxd8 {[%emt 0:02:58]} Bxd8 {[%emt 0:00:02]} 33. h5 {[%emt 0:00:30]} Ke6 {[%emt 0:00:35]} 34. e4 {[%emt 0:00:16]} g6 {[%emt 0:00:27]} 35. Kd3 {[%emt 0:02:20]} a6 {[%emt 0:00:58]} 36. hxg6 {[%emt 0:00:57]} hxg6 {[%emt 0:00:02]} 37. Be3 {[%emt 0:00:09]} g5 {[%emt 0:02:25]} 38. f4 {[%emt 0:05:57]} gxf4 {[%emt 0:00:05]} 39. Bxf4 {[%emt 0:00:03]} Bb6 {[%emt 0:00:46]} 40. a4 {[%emt 0:01:36]} Bf2 {[%emt 0:01:44]} 41. b3 {[%emt 0:00:15]} b5 {[%emt 0:00:58]} 42. Bh2 {[%emt 0:01:20]} Bb6 {[%emt 0:00:43]} 43. Bf4 {[%emt 0:00:24]} Bf2 {[%emt 0:00:07]} 1/2-1/2

[Event "29. Klatovy A 2023"]
[Site "Klatovy"]
[Date "2023.07.07"]
[Round "7.4"]
[White "Jurek, Josef"]
[Black "Palek, Miroslav"]
[Result "1-0"]
[ECO "E66"]
[WhiteElo "2251"]
[BlackElo "2091"]
[PlyCount "79"]
[EventDate "2023.07.01"]
[EventType "swiss"]
[EventRounds "9"]
[EventCountry "CZE"]
[TimeControl "120+30"]

1. Nf3 {[%emt 0:00:06]} Nf6 {[%emt 0:00:28]} 2. c4 {[%emt 0:00:18]} g6 {[%emt 0:00:19]} 3. d4 {[%emt 0:00:16]} Bg7 {[%emt 0:00:22]} 4. g3 {[%emt 0:00:13]} O-O {[%emt 0:00:19]} 5. Bg2 {[%emt 0:00:11]} d6 {[%emt 0:00:20]} 6. Nc3 {[%emt 0:00:12]} Nc6 {[%emt 0:01:27]} 7. O-O {[%emt 0:00:15]} a6 {[%emt 0:00:52]} 8. d5 {[%emt 0:00:38]} Na5 {[%emt 0:00:16]} 9. Nd2 {[%emt 0:00:25]} c5 {[%emt 0:00:40]} 10. Qc2 {[%emt 0:00:11]} Rb8 {[%emt 0:00:53]} 11. b3 {[%emt 0:00:20]} b5 {[%emt 0:00:33]} 12. Bb2 {[%emt 0:00:14]} bxc4 {[%emt 0:00:50]} 13. bxc4 {[%emt 0:00:15]} e5 {[%emt 0:00:39]} 14. Rae1 {[%emt 0:06:47]} Bh6 {[%emt 0:18:17]} 15. Ncb1 {[%emt 0:02:46]} Nh5 {[%emt 0:06:13]} 16. Bc3 {[%emt 0:06:56]} Bd7 {[%emt 0:00:42]} 17. e3 {[%emt 0:01:36]} Ng7 {[%emt 0:07:17]} 18. Na3 {[%emt 0:04:39]} Qc7 {[%emt 0:03:30]} 19. Rb1 {[%emt 0:13:46]} Rfc8 {[%emt 0:01:41]} 20. Rb2 {[%emt 0:09:17]} Nb7 {[%emt 0:00:44]} 21. Rfb1 {[%emt 0:03:33]} Nd8 {[%emt 0:01:02]} 22. Nb3 {[%emt 0:04:42]} Nb7 {[%emt 0:06:27]} 23. Bf1 {[%emt 0:04:11]} Ne8 {[%emt 0:04:26]} 24. Qd2 {[%emt 0:04:19]} Bf8 {[%emt 0:02:20]} 25. Bd3 {[%emt 0:02:51]} Be7 {[%emt 0:01:21]} 26. Nc2 {[%emt 0:01:43]} Bf8 {[%emt 0:06:44]} 27. Ne1 {[%emt 0:01:45]} Be7 {[%emt 0:00:36]} 28. Qd1 {[%emt 0:03:36]} Bf6 {[%emt 0:03:45]} 29. Nd2 {[%emt 0:04:06]} Nd8 {[%emt 0:00:32]} 30. Ba5 {[%emt 0:02:33]} Qa7 {[%emt 0:00:34]} 31. Bb6 {[%emt 0:02:46]} Qa8 {[%emt 0:00:15]} 32. e4 {[%emt 0:01:57]} Rb7 {[%emt 0:02:25]} 33. Bc2 {[%emt 0:05:48]} Kf8 {[%emt 0:15:21]} 34. Ba4 {[%emt 0:02:05]} Bb5 {[%emt 0:03:00]} 35. cxb5 {[%emt 0:10:21]} Rxb6 {[%emt 0:00:46]} 36. Nc4 {[%emt 0:00:17]} Rbb8 {[%emt 0:05:14]} 37. b6 {[%emt 0:00:46]} Nb7 {[%emt 0:00:49]} 38. Bc6 {[%emt 0:01:38]} a5 {[%emt 0:00:11]} 39. Qa4 {[%emt 0:02:51]} Qa6 {[%emt 0:03:17]} 40. Rb5 {[%emt 0:01:18]} 1-0

[Event "29. Klatovy A 2023"]
[Site "Klatovy"]
[Date "2023.07.07"]
[Round "7.5"]
[White "Folk, Petr"]
[Black "Jun, Rudolf"]
[Result "0-1"]
[ECO "B85"]
[WhiteElo "2135"]
[BlackElo "2223"]
[PlyCount "82"]
[EventDate "2023.07.01"]
[EventType "swiss"]
[EventRounds "9"]
[EventCountry "CZE"]
[TimeControl "120+30"]

1. e4 {[%emt 0:01:43]} c5 {[%emt 0:00:21]} 2. Nf3 {[%emt 0:00:13]} e6 {[%emt 0:00:16]} 3. d4 {[%emt 0:00:23]} cxd4 {[%emt 0:00:14]} 4. Nxd4 {[%emt 0:00:05]} a6 {[%emt 0:00:28]} 5. Nc3 {[%emt 0:00:35]} d6 {[%emt 0:01:42]} 6. Be2 {[%emt 0:02:04]} Nc6 {[%emt 0:00:42]} 7. Be3 {[%emt 0:00:39]} Nf6 {[%emt 0:00:21]} 8. f4 {[%emt 0:01:17]} Be7 {[%emt 0:00:29]} 9. O-O {[%emt 0:08:09]} Qc7 {[%emt 0:00:24]} 10. a4 {[%emt 0:00:24]} O-O {[%emt 0:01:40]} 11. Kh1 {[%emt 0:00:46]} Nxd4 {[%emt 0:02:37]} 12. Qxd4 {[%emt 0:13:17]} e5 {[%emt 0:00:19]} 13. Qd3 {[%emt 0:01:00]} Bd7 {[%emt 0:09:06]} 14. a5 {[%emt 0:08:16]} Rac8 {[%emt 0:09:17]} 15. f5 {[%emt 0:06:34]} Rfe8 {[%emt 0:12:24]} 16. Rfc1 {[%emt 0:03:44]} Bc6 {[%emt 0:03:49]} 17. Bb6 {[%emt 0:10:32]} Qb8 {[%emt 0:03:52]} 18. Rd1 {[%emt 0:01:14]} Nd7 {[%emt 0:02:18]} 19. Be3 {[%emt 0:00:56]} Qc7 {[%emt 0:02:19]} 20. Rdc1 {[%emt 0:02:15]} Nc5 {[%emt 0:04:42]} 21. Bxc5 {[%emt 0:06:09]} dxc5 {[%emt 0:01:19]} 22. Nd5 {[%emt 0:06:06]} Bxd5 {[%emt 0:00:05]} 23. Qxd5 {[%emt 0:03:00]} Red8 {[%emt 0:01:03]} 24. Qb3 {[%emt 0:00:39]} c4 {[%emt 0:03:16]} 25. Qg3 {[%emt 0:05:24]} Qc6 {[%emt 0:01:47]} 26. Re1 {[%emt 0:05:12]} Bf6 {[%emt 0:02:18]} 27. Bf1 {[%emt 0:03:45]} Rd4 {[%emt 0:02:55]} 28. Qf3 {[%emt 0:05:44]} Rcd8 {[%emt 0:03:53]} 29. Rad1 {[%emt 0:01:43]} Rxd1 {[%emt 0:01:12]} 30. Rxd1 {[%emt 0:00:04]} Rxd1 {[%emt 0:02:43]} 31. Qxd1 {[%emt 0:00:00]} Qxe4 {[%emt 0:00:37]} 32. Qd7 {[%emt 0:01:08]} g6 {[%emt 0:00:27]} 33. fxg6 {[%emt 0:00:20]} hxg6 {[%emt 0:00:03]} 34. Qc8+ {[%emt 0:00:19]} Kg7 {[%emt 0:00:05]} 35. Qxc4 {[%emt 0:00:12]} Qe1 {[%emt 0:00:37]} 36. c3 {[%emt 0:02:18]} Qa1 {[%emt 0:00:47]} 37. Kg1 {[%emt 0:01:09]} Qxa5 {[%emt 0:02:50]} 38. b4 {[%emt 0:06:44]} Qa1 {[%emt 0:01:36]} 39. Qe4 {[%emt 0:04:06]} Qxc3 {[%emt 0:02:46]} 40. Qxb7 {[%emt 0:00:16]} Qe3+ {[%emt 0:00:14]} 41. Kh1 {[%emt 0:00:07]} e4 {[%emt 0:00:14]} 0-1

[Event "29. Klatovy A 2023"]
[Site "Klatovy"]
[Date "2023.07.07"]
[Round "7.7"]
[White "Vorisek, Jaroslav"]
[Black "Pycha, Patrik"]
[Result "1-0"]
[ECO "E11"]
[WhiteElo "2260"]
[BlackElo "2058"]
[PlyCount "61"]
[EventDate "2023.07.01"]
[EventType "swiss"]
[EventRounds "9"]
[EventCountry "CZE"]
[TimeControl "120+30"]

1. d4 {[%emt 0:00:06]} Nf6 {[%emt 0:00:06]} 2. Nf3 {[%emt 0:00:33]} e6 {[%emt 0:00:29]} 3. c4 {[%emt 0:00:30]} Bb4+ {[%emt 0:00:28]} 4. Bd2 {[%emt 0:01:15]} a5 {[%emt 0:00:07]} 5. Qc2 {[%emt 0:12:34]} d6 {[%emt 0:04:39]} 6. Nc3 {[%emt 0:04:02]} Nbd7 {[%emt 0:04:24]} 7. g3 {[%emt 0:15:07]} O-O {[%emt 0:00:30]} 8. Bg2 {[%emt 0:00:25]} e5 {[%emt 0:03:35]} 9. O-O {[%emt 0:03:49]} Qe7 {[%emt 0:07:01]} 10. e4 {[%emt 0:07:59]} Bxc3 {[%emt 0:08:01]} 11. Bxc3 {[%emt 0:00:12]} b6 {[%emt 0:00:30]} 12. Nh4 {[%emt 0:17:14]} g6 {[%emt 0:04:01]} 13. b3 {[%emt 0:01:05]} Nh5 {[%emt 0:04:11]} 14. Nf3 {[%emt 0:05:41]} f6 {[%emt 0:03:59]} 15. Rae1 {[%emt 0:01:56]} Ng7 {[%emt 0:02:02]} 16. Re2 {[%emt 0:00:49]} c5 {[%emt 0:01:02]} 17. d5 {[%emt 0:01:12]} Rf7 {[%emt 0:02:33]} 18. Ne1 {[%emt 0:01:32]} Ba6 {[%emt 0:06:16]} 19. a4 {[%emt 0:09:52]} Raf8 {[%emt 0:00:59]} 20. f4 {[%emt 0:03:25]} Bc8 {[%emt 0:03:12]} 21. Nd3 {[%emt 0:02:10]} g5 {[%emt 0:08:39]} 22. Ref2 {[%emt 0:07:20]} Ne8 {[%emt 0:10:07]} 23. Bh3 {[%emt 0:01:47]} Nc7 {[%emt 0:04:21]} 24. Qe2 {[%emt 0:05:22]} h6 {[%emt 0:04:49]} 25. Bf5 {[%emt 0:05:29]} Rg7 {[%emt 0:04:20]} 26. Kh1 {[%emt 0:01:38]} Qe8 {[%emt 0:05:46]} 27. Qd1 {[%emt 0:06:29]} Rff7 {[%emt 0:01:34]} 28. Qh5 {[%emt 0:00:45]} Nf8 {[%emt 0:00:50]} 29. Bxc8 {[%emt 0:01:03]} Qxc8 {[%emt 0:00:07]} 30. fxe5 {[%emt 0:00:08]} dxe5 {[%emt 0:02:44]} 31. Nxe5 {[%emt 0:02:12]} 1-0

[Event "29. Klatovy A 2023"]
[Site "Klatovy"]
[Date "2023.07.07"]
[Round "7.8"]
[White "Zhang, Michelle 2013"]
[Black "Flajsman, Pavel"]
[Result "0-1"]
[ECO "B06"]
[WhiteElo "1724"]
[BlackElo "2192"]
[PlyCount "194"]
[EventDate "2023.07.01"]
[EventType "swiss"]
[EventRounds "9"]
[EventCountry "CZE"]
[TimeControl "120+30"]

1. e4 {[%emt 0:00:04]} g6 {[%emt 0:00:05]} 2. d4 {[%emt 0:00:14]} Bg7 {[%emt 0:00:07]} 3. Nc3 {[%emt 0:00:45]} d6 {[%emt 0:01:49]} 4. Nf3 {[%emt 0:01:07]} a6 {[%emt 0:00:11]} 5. Bf4 {[%emt 0:01:57]} b5 {[%emt 0:08:42]} 6. a3 {[%emt 0:03:24]} Bb7 {[%emt 0:02:10]} 7. Bd3 {[%emt 0:05:39]} Nd7 {[%emt 0:07:56]} 8. O-O {[%emt 0:04:39]} c5 {[%emt 0:05:45]} 9. Be3 {[%emt 0:04:54]} cxd4 {[%emt 0:47:36]} 10. Bxd4 {[%emt 0:02:51]} Ngf6 {[%emt 0:00:40]} 11. Re1 {[%emt 0:05:32]} O-O {[%emt 0:01:13]} 12. h3 {[%emt 0:11:20]} Nc5 {[%emt 0:04:03]} 13. e5 {[%emt 0:14:11]} Nxd3 {[%emt 0:02:20]} 14. Qxd3 {[%emt 0:02:13]} dxe5 {[%emt 0:01:04]} 15. Nxe5 {[%emt 0:05:02]} Qc7 {[%emt 0:10:16]} 16. Rad1 {[%emt 0:04:17]} Rad8 {[%emt 0:02:16]} 17. Qe3 {[%emt 0:02:21]} Nd5 {[%emt 0:00:30]} 18. Nxd5 {[%emt 0:01:11]} Rxd5 {[%emt 0:00:02]} 19. Qc3 {[%emt 0:25:35]} Qd6 {[%emt 0:09:31]} 20. Rd3 {[%emt 0:09:20]} Rc8 {[%emt 0:01:54]} 21. Qd2 {[%emt 0:01:06]} Rd8 {[%emt 0:07:38]} 22. Bc3 {[%emt 0:09:10]} Rxd3 {[%emt 0:03:35]} 23. Qxd3 {[%emt 0:02:30]} Qxd3 {[%emt 0:09:52]} 24. cxd3 {[%emt 0:02:57]} e6 {[%emt 0:00:23]} 25. d4 {[%emt 0:00:28]} Bf6 {[%emt 0:01:25]} 26. Kh2 {[%emt 0:01:55]} Bd5 {[%emt 0:00:59]} 27. Re3 {[%emt 0:01:06]} Bg5 {[%emt 0:00:19]} 28. Re1 {[%emt 0:00:27]} Be7 {[%emt 0:00:16]} 29. Re3 {[%emt 0:01:20]} Bd6 {[%emt 0:00:41]} 30. Kg1 {[%emt 0:00:55]} f6 {[%emt 0:01:05]} 31. Nd3 {[%emt 0:01:27]} Kf7 {[%emt 0:00:17]} 32. Nb4 {[%emt 0:02:28]} Bb7 {[%emt 0:00:10]} 33. Nd3 {[%emt 0:00:35]} Ra8 {[%emt 0:00:29]} 34. Ba5 {[%emt 0:00:42]} Bd5 {[%emt 0:00:25]} 35. Kf1 {[%emt 0:02:43]} Rc8 {[%emt 0:01:00]} 36. Bc3 {[%emt 0:01:38]} Bc4 {[%emt 0:00:28]} 37. Kg1 {[%emt 0:00:24]} a5 {[%emt 0:01:00]} 38. g3 {[%emt 0:00:28]} Bxd3 {[%emt 0:00:25]} 39. Rxd3 {[%emt 0:00:07]} b4 {[%emt 0:00:01]} 40. axb4 {[%emt 0:00:48]} axb4 {[%emt 0:00:04]} 41. Be1 {[%emt 0:00:21]} Rc2 {[%emt 0:01:22]} 42. Rb3 {[%emt 0:00:42]} Rc1 {[%emt 0:00:35]} 43. Kf1 {[%emt 0:00:27]} Rd1 {[%emt 0:00:04]} 44. Ke2 {[%emt 0:00:27]} Rxd4 {[%emt 0:00:02]} 45. Rd3 {[%emt 0:00:37]} Re4+ {[%emt 0:01:01]} 46. Kd1 {[%emt 0:00:28]} Ke7 {[%emt 0:00:16]} 47. f3 {[%emt 0:00:30]} Rc4 {[%emt 0:00:30]} 48. b3 {[%emt 0:00:28]} Rc6 {[%emt 0:00:09]} 49. Rd4 {[%emt 0:00:29]} Rb6 {[%emt 0:00:24]} 50. Rc4 {[%emt 0:00:34]} Kd7 {[%emt 0:00:11]} 51. Kc2 {[%emt 0:00:39]} Rb5 {[%emt 0:01:52]} 52. g4 {[%emt 0:00:26]} h5 {[%emt 0:00:41]} 53. Bd2 {[%emt 0:00:26]} h4 {[%emt 0:00:23]} 54. f4 {[%emt 0:00:26]} Be7 {[%emt 0:00:22]} 55. Be1 {[%emt 0:00:34]} g5 {[%emt 0:00:13]} 56. Bd2 {[%emt 0:00:24]} Bd6 {[%emt 0:00:40]} 57. fxg5 {[%emt 0:00:36]} fxg5 {[%emt 0:00:02]} 58. Rd4 {[%emt 0:00:36]} Kc6 {[%emt 0:00:48]} 59. Kb1 {[%emt 0:00:31]} Be7 {[%emt 0:00:18]} 60. Rc4+ {[%emt 0:00:24]} Kd5 {[%emt 0:01:06]} 61. Be3 {[%emt 0:00:40]} e5 {[%emt 0:00:33]} 62. Bd2 {[%emt 0:00:26]} Rb7 {[%emt 0:00:33]} 63. Kc2 {[%emt 0:00:29]} e4 {[%emt 0:00:26]} 64. Be3 {[%emt 0:00:14]} Rb5 {[%emt 0:00:31]} 65. Rd4+ {[%emt 0:00:23]} Ke5 {[%emt 0:00:05]} 66. Rc4 {[%emt 0:00:22]} Rd5 {[%emt 0:00:37]} 67. Rc7 {[%emt 0:00:41]} Ke6 {[%emt 0:00:08]} 68. Rc4 {[%emt 0:00:37]} Ke5 {[%emt 0:00:01]} 69. Rc7 {[%emt 0:00:11]} Bf6 {[%emt 0:00:48]} 70. Bd2 {[%emt 0:00:39]} Rb5 {[%emt 0:01:10]} 71. Be3 {[%emt 0:00:25]} Kd6 {[%emt 0:00:34]} 72. Rc4 {[%emt 0:00:30]} Kd5 {[%emt 0:00:14]} 73. Rc7 {[%emt 0:00:31]} Ra5 {[%emt 0:00:28]} 74. Rb7 {[%emt 0:00:55]} Bc3 {[%emt 0:00:47]} 75. Bxg5 {[%emt 0:00:33]} Kc6 {[%emt 0:00:06]} 76. Re7 {[%emt 0:00:21]} Rxg5 {[%emt 0:00:04]} 77. Rxe4 {[%emt 0:00:05]} Kd5 {[%emt 0:00:38]} 78. Re8 {[%emt 0:00:12]} Kd4 {[%emt 0:01:12]} 79. Re6 {[%emt 0:00:48]} Ra5 {[%emt 0:00:28]} 80. Rd6+ {[%emt 0:00:23]} Ke3 {[%emt 0:00:25]} 81. Rd3+ {[%emt 0:00:17]} Kf4 {[%emt 0:00:06]} 82. Kd1 {[%emt 0:00:40]} Ra1+ {[%emt 0:00:10]} 83. Kc2 {[%emt 0:00:15]} Rg1 {[%emt 0:00:19]} 84. g5 {[%emt 0:00:38]} Rg2+ {[%emt 0:00:14]} 85. Kc1 {[%emt 0:00:12]} Rxg5 {[%emt 0:00:13]} 86. Rd7 {[%emt 0:00:14]} Kg3 {[%emt 0:00:35]} 87. Rd3+ {[%emt 0:00:09]} Kg2 {[%emt 0:00:09]} 88. Re3 {[%emt 0:00:11]} Rg3 {[%emt 0:00:07]} 89. Re2+ {[%emt 0:00:08]} Kxh3 {[%emt 0:00:04]} 90. Re4 {[%emt 0:00:07]} Rf3 {[%emt 0:00:09]} 91. Re7 {[%emt 0:00:14]} Kg2 {[%emt 0:00:07]} 92. Rh7 {[%emt 0:00:10]} h3 {[%emt 0:00:06]} 93. Rh6 {[%emt 0:00:11]} h2 {[%emt 0:00:05]} 94. Rg6+ {[%emt 0:00:09]} Rg3 {[%emt 0:00:04]} 95. Rh6 {[%emt 0:00:09]} h1=Q+ {[%emt 0:00:20]} 96. Rxh1 {[%emt 0:00:05]} Kxh1 {[%emt 0:00:01]} 97. Kc2 {[%emt 0:00:11]} Be5 {[%emt 0:00:10]} 0-1

[Event "29. Klatovy A 2023"]
[Site "Klatovy"]
[Date "2023.07.07"]
[Round "7.9"]
[White "Kishore, Kumar Jaganathan"]
[Black "Dvorak, Jan"]
[Result "0-1"]
[ECO "E09"]
[WhiteElo "1860"]
[BlackElo "2176"]
[PlyCount "60"]
[EventDate "2023.07.01"]
[EventType "swiss"]
[EventRounds "9"]
[EventCountry "CZE"]
[TimeControl "120+30"]

1. d4 {[%emt 0:01:54]} e6 {[%emt 0:00:10]} 2. c4 {[%emt 0:00:09]} Nf6 {[%emt 0:00:13]} 3. g3 {[%emt 0:00:07]} d5 {[%emt 0:00:14]} 4. Nf3 {[%emt 0:00:06]} Be7 {[%emt 0:00:16]} 5. Bg2 {[%emt 0:00:17]} O-O {[%emt 0:00:12]} 6. O-O {[%emt 0:00:08]} Nbd7 {[%emt 0:00:19]} 7. Qc2 {[%emt 0:02:56]} c6 {[%emt 0:00:48]} 8. Nbd2 {[%emt 0:04:31]} b6 {[%emt 0:02:40]} 9. e4 {[%emt 0:00:07]} Ba6 {[%emt 0:02:58]} 10. Re1 {[%emt 0:06:37]} Rc8 {[%emt 0:10:15]} 11. e5 {[%emt 0:18:12]} Ne8 {[%emt 0:06:45]} 12. b3 {[%emt 0:06:07]} Nc7 {[%emt 0:04:09]} 13. Bb2 {[%emt 0:01:46]} c5 {[%emt 0:03:07]} 14. Rad1 {[%emt 0:02:21]} b5 {[%emt 0:06:52]} 15. dxc5 {[%emt 0:17:07]} Bxc5 {[%emt 0:07:17]} 16. Bd4 {[%emt 0:06:34]} bxc4 {[%emt 0:24:09]} 17. bxc4 {[%emt 0:02:15]} Bxd4 {[%emt 0:07:57]} 18. Nxd4 {[%emt 0:00:07]} Nb5 {[%emt 0:02:02]} 19. Qb2 {[%emt 0:16:14]} Nxd4 {[%emt 0:02:29]} 20. Qxd4 {[%emt 0:00:06]} Bxc4 {[%emt 0:01:30]} 21. Nxc4 {[%emt 0:00:30]} Rxc4 {[%emt 0:00:05]} 22. Qxa7 {[%emt 0:01:04]} Rc5 {[%emt 0:05:01]} 23. h4 {[%emt 0:11:11]} Ra5 {[%emt 0:08:54]} 24. Qd4 {[%emt 0:00:12]} Rxa2 {[%emt 0:06:33]} 25. h5 {[%emt 0:22:45]} Qg5 {[%emt 0:07:25]} 26. Rc1 {[%emt 0:05:57]} Rfa8 {[%emt 0:08:43]} 27. Rc7 {[%emt 0:01:00]} Nf8 {[%emt 0:00:48]} 28. Bf3 {[%emt 0:03:12]} R2a4 {[%emt 0:01:47]} 29. Qc5 {[%emt 0:00:24]} Qf5 {[%emt 0:01:55]} 30. Bg2 {[%emt 0:01:02]} Ra1 {[%emt 0:02:02]} 0-1